bitfinex/quotes_BTCUSD_20240719
["timestamp","ask_amount","ask_price","bid_price","bid_amount"]
[1721400085824,0.38954272,65689.0,65688.0,2.18326637]
[1721400086042,0.38954272,65689.0,65688.0,2.07081347]
[1721400086491,0.38954272,65689.0,65688.0,2.00274738]
[1721400086712,0.38954272,65689.0,65688.0,1.91283741]
[1721400086928,0.38954272,65689.0,65688.0,2.00273784]
[1721400087155,0.41254272,65689.0,65688.0,1.91283741]
[1721400088030,0.41254272,65689.0,65688.0,1.25270608]
[1721400088454,0.41254272,65689.0,65688.0,1.55717508]
[1721400089339,0.47304272,65689.0,65688.0,0.45157698]
[1721400089584,0.62742446,65689.0,65688.0,0.16202665]
[1721400089787,0.70772446,65689.0,65688.0,0.16205041]
[1721400090009,0.70772446,65689.0,65688.0,0.28844173]
[1721400090688,0.55334272,65689.0,65688.0,1.04961373]
[1721400090909,0.47304272,65689.0,65688.0,1.25720372]
[1721400091123,0.47304272,65689.0,65688.0,1.21279918]
[1721400092665,0.47304272,65689.0,65688.0,1.21278005]
[1721400094461,0.47304272,65689.0,65688.0,1.23079191]
[1721400094677,0.47304272,65689.0,65688.0,1.02321108]
[1721400094890,0.47304272,65689.0,65688.0,0.71874208]
[1721400095536,0.47304272,65689.0,65688.0,1.02321108]
[1721400095751,0.47304272,65689.0,65688.0,0.89683177]
[1721400096003,0.41254272,65689.0,65688.0,1.2308019]
[1721400096225,0.41254272,65689.0,65688.0,1.51725978]
[1721400098848,0.41254272,65689.0,65688.0,1.20130077]
[1721400099061,0.41254272,65689.0,65688.0,1.5172538]
[1721400099294,0.41254272,65689.0,65688.0,1.20130077]
[1721400099517,0.41254272,65689.0,65688.0,1.51725419]
[1721400100736,0.38954272,65689.0,65688.0,1.9166741]
[1721400100989,0.38954272,65689.0,65688.0,2.28976704]
[1721400101257,0.38954272,65689.0,65688.0,1.88490669]
[1721400101480,0.38954272,65689.0,65688.0,1.86670465]
[1721400101945,0.38954272,65689.0,65688.0,1.82170487]
[1721400102404,0.38954272,65689.0,65688.0,1.866697]
[1721400102625,0.38954272,65689.0,65688.0,1.51723587]
[1721400103566,0.53654272,65689.0,65688.0,0.12637404]
[1721400103824,0.53654272,65689.0,65680.0,0.11248032]
[1721400103825,0.05,65626.0,65625.0,0.16794271]
[1721400104057,0.05,65626.0,65617.0,0.009185]
[1721400104058,0.05,65625.0,65617.0,0.009185]
[1721400104311,0.13708543,65623.0,65617.0,0.009185]
[1721400104550,0.13679035,65625.0,65617.0,0.009185]
[1721400104770,0.0078,65627.0,65617.0,0.009185]
[1721400105010,0.002794,65626.0,65617.0,0.009185]
[1721400105232,0.07717479,65624.0,65617.0,0.009185]
[1721400105958,0.023,65623.0,65617.0,0.009185]
[1721400106187,0.023,65623.0,65622.0,1e-08]
[1721400106413,0.025794,65623.0,65622.0,1e-08]
[1721400107280,0.025794,65623.0,65622.0,0.01400001]
[1721400107709,0.025794,65623.0,65622.0,1e-08]
[1721400108799,0.025794,65623.0,65618.0,0.152396]
[1721400109219,0.027794,65623.0,65622.0,0.015]
[1721400109867,0.026794,65623.0,65622.0,0.009]
[1721400110084,0.026794,65623.0,65618.0,0.006]
[1721400110306,0.026794,65623.0,65618.0,0.015]
[1721400110529,0.027794,65623.0,65618.0,0.009]
[1721400110750,0.027794,65623.0,65617.0,0.161584]
[1721400110751,0.025794,65623.0,65617.0,0.009185]
[1721400111018,0.026794,65623.0,65622.0,0.006]
[1721400111250,0.027794,65623.0,65622.0,0.015]
[1721400112129,0.027794,65623.0,65617.0,0.009185]
[1721400112351,0.026794,65623.0,65617.0,0.161583]
[1721400112569,0.026794,65623.0,65617.0,0.009185]
[1721400112806,0.027794,65623.0,65618.0,0.006]
[1721400113253,0.025794,65623.0,65617.0,0.009185]
[1721400113472,0.026794,65623.0,65618.0,0.009]
[1721400113691,0.027794,65623.0,65618.0,0.009]
[1721400114120,0.026794,65623.0,65618.0,0.009]
[1721400114340,0.025794,65623.0,65617.0,0.009185]
[1721400115707,0.026794,65623.0,65617.0,0.009185]
[1721400116619,0.027794,65623.0,65617.0,0.009185]
[1721400117811,0.457191,65618.0,65617.0,0.009185]
[1721400118065,0.22967574,65618.0,65607.0,0.009185]
[1721400118299,0.31957479,65608.0,65607.0,0.009185]
[1721400118520,0.34257479,65608.0,65607.0,0.009185]
[1721400119036,0.002794,65607.0,65597.0,0.152444]
[1721400119267,0.07717479,65598.0,65591.0,0.0758]
[1721400119510,0.07717479,65598.0,65584.0,0.30495]
[1721400119511,0.2424,65592.0,65584.0,0.30495]
[1721400119731,0.07717479,65585.0,65584.0,0.457426]
[1721400120186,0.07717479,65585.0,65580.0,0.0798]
[1721400120433,0.07717479,65598.0,65580.0,0.0798]
[1721400120434,0.07717479,65598.0,65583.0,0.05]
[1721400120686,0.07717479,65591.0,65590.0,0.457386]
[1721400120932,0.07717479,65591.0,65583.0,0.304954]
[1721400121135,0.023,65590.0,65584.0,0.152474]
[1721400121404,0.002794,65589.0,65585.0,0.10304915]
[1721400121620,0.002794,65589.0,65587.0,0.152468]
[1721400121842,0.002794,65589.0,65578.0,0.304976]
[1721400122062,0.07717479,65579.0,65578.0,0.45747]
[1721400122284,0.07697479,65579.0,65578.0,0.45747]
[1721400122727,0.07697479,65579.0,65578.0,0.76245]
[1721400123381,0.07697479,65579.0,65578.0,0.86245]
[1721400124074,0.09097479,65579.0,65578.0,0.25249]
[1721400124327,0.09097479,65579.0,65578.0,0.86245]
[1721400124539,0.09097479,65579.0,65578.0,0.55847]
[1721400124753,0.10497479,65579.0,65578.0,0.45847]
[1721400125836,0.10497479,65579.0,65578.0,0.001]
[1721400126068,0.28235653,65579.0,65578.0,0.001]
[1721400126980,0.26835653,65579.0,65578.0,0.001]
[1721400127213,0.28235653,65579.0,65578.0,0.001]
[1721400127436,0.34825653,65579.0,65578.0,0.001]
[1721400127709,0.65323153,65579.0,65578.0,0.001]
[1721400127920,1.53816853,65579.0,65578.0,0.001]
[1721400128138,0.152509,65570.0,65557.0,0.0119]
[1721400128364,0.07717479,65558.0,65557.0,0.0119]
[1721400128852,0.10017479,65558.0,65557.0,0.164439]
[1721400129143,0.10017479,65558.0,65557.0,0.1119]
[1721400129382,0.10017479,65558.0,65557.0,0.0119]
[1721400129858,0.10117479,65558.0,65557.0,0.0119]
[1721400130089,0.25655653,65558.0,65557.0,0.0119]
[1721400130564,0.25555653,65558.0,65557.0,0.0119]
[1721400131477,0.25455653,65558.0,65557.0,0.0119]
[1721400131719,0.10017479,65558.0,65557.0,0.0119]
[1721400132230,0.25555653,65558.0,65557.0,0.0129]
[1721400132685,0.40809253,65558.0,65557.0,0.0129]
[1721400132910,0.25555653,65558.0,65557.0,0.0129]
[1721400133166,0.25655653,65558.0,65557.0,0.0129]
[1721400133659,0.40809253,65558.0,65557.0,0.0129]
[1721400133906,0.71416553,65558.0,65557.0,0.0129]
[1721400134174,1.84961153,65558.0,65557.0,0.0129]
[1721400134465,1.96121153,65558.0,65557.0,0.0129]
[1721400134731,1.96121153,65558.0,65540.0,0.000603]
[1721400134732,0.457728,65541.0,65540.0,0.000603]
[1721400134954,1.05603653,65541.0,65540.0,0.000603]
[1721400135193,0.46873253,65541.0,65540.0,0.000603]
[1721400135634,0.31615653,65541.0,65540.0,0.000603]
[1721400135858,0.23898174,65541.0,65540.0,0.000603]
[1721400136619,0.69670974,65541.0,65540.0,0.000603]
[1721400137063,1.00186174,65541.0,65540.0,0.000603]
[1721400137302,1.07903653,65541.0,65540.0,0.000603]
[1721400137956,0.77388453,65541.0,65540.0,0.000603]
[1721400138184,1.08003653,65541.0,65540.0,0.000603]
[1721400138649,1.13003653,65541.0,65540.0,0.000603]
[1721400138873,1.29043653,65541.0,65540.0,0.000603]
[1721400139569,1.13003653,65541.0,65540.0,0.000603]
[1721400139800,0.77488453,65541.0,65540.0,0.000603]
[1721400140034,0.21698174,65541.0,65540.0,0.153181]
[1721400140262,0.21698174,65541.0,65540.0,0.000603]
[1721400140263,0.29315653,65541.0,65540.0,0.000603]
[1721400140483,0.75088453,65541.0,65540.0,0.000603]
[1721400140939,1.10603653,65541.0,65540.0,0.000603]
[1721400141397,1.36193653,65541.0,65540.0,0.000603]
[1721400141631,1.36293653,65541.0,65540.0,0.000603]
[1721400142368,1.66808853,65541.0,65540.0,0.000603]
[1721400142599,1.41193653,65541.0,65540.0,0.000603]
[1721400142837,0.64223253,65541.0,65540.0,0.000603]
[1721400143315,1.46293653,65541.0,65540.0,0.000603]
[1721400143820,1.76808853,65541.0,65540.0,0.000603]
[1721400144564,0.30518,65536.0,65519.0,0.009207]
[1721400144798,0.07717479,65530.0,65519.0,0.009207]
[1721400145035,0.15438174,65529.0,65523.0,0.305236]
[1721400145273,0.15438174,65529.0,65520.0,0.01018729]
[1721400145274,0.15438174,65529.0,65528.0,0.152606]
[1721400145517,0.01,65540.0,65535.0,0.152587]
[1721400145747,0.01,65540.0,65538.0,0.457749]
[1721400145748,0.15438174,65539.0,65538.0,0.457749]
[1721400146218,0.15438174,65539.0,65538.0,0.16262103]
[1721400146460,0.15438174,65539.0,65538.0,0.46778703]
[1721400146690,0.01,65540.0,65539.0,0.812902]
[1721400146922,0.01,65540.0,65539.0,1.07809274]
[1721400147145,0.01,65540.0,65539.0,1.38325374]
[1721400147370,0.01,65540.0,65539.0,0.77293174]
[1721400148326,0.01,65540.0,65539.0,1.26629274]
[1721400148559,0.011,65540.0,65539.0,1.21629274]
[1721400148780,0.011,65540.0,65539.0,1.57145374]
[1721400149009,0.01,65540.0,65539.0,1.21629274]
[1721400149497,0.011,65540.0,65539.0,1.21629274]
[1721400149723,0.012,65540.0,65539.0,1.21629274]
[1721400149943,0.012,65540.0,65539.0,0.91113174]
[1721400150647,0.035,65540.0,65539.0,0.91113174]
[1721400150868,0.034,65540.0,65539.0,0.91113174]
[1721400151084,0.035,65540.0,65539.0,0.91113174]
[1721400151302,0.035,65540.0,65539.0,0.85073174]
[1721400151562,0.18938174,65540.0,65539.0,0.01002974]
[1721400151785,0.18838174,65540.0,65530.0,0.305201]
[1721400152053,0.07717479,65529.0,65528.0,0.457815]
[1721400152286,0.10017479,65529.0,65528.0,0.457815]
[1721400152509,0.023,65529.0,65528.0,0.763032]
[1721400152730,0.023,65535.0,65529.0,0.305207]
[1721400152992,0.10296879,65535.0,65534.0,0.457777]
[1721400153221,0.25455653,65535.0,65534.0,0.8087397]
[1721400153441,0.01,65540.0,65539.0,0.762902]
[1721400153665,0.01,65540.0,65539.0,1.10067491]
[1721400154356,0.011,65540.0,65539.0,1.40583591]
[1721400154604,0.011,65540.0,65539.0,1.76099691]
[1721400154845,0.01,65540.0,65539.0,2.73099691]
[1721400155072,0.0613,65573.0,65569.0,0.152509]
[1721400155301,0.0613,65573.0,65558.0,0.0829]
[1721400155302,0.15717574,65571.0,65558.0,0.0829]
[1721400155524,0.15717574,65571.0,65565.0,0.152518]
[1721400155752,0.15717574,65571.0,65559.0,0.03261191]
[1721400155753,0.15717574,65571.0,65562.0,0.305053]
[1721400156009,0.002794,65571.0,65570.0,0.152508]
[1721400156232,0.002794,65571.0,65563.0,0.00305047]
[1721400156233,0.07717479,65572.0,65571.0,0.457518]
[1721400156463,0.0613,65583.0,65578.0,0.15249]
[1721400156696,0.0613,65583.0,65578.0,0.472719]
[1721400156922,0.00084,65589.0,65581.0,0.457446]
[1721400157149,0.07717479,65584.0,65580.0,0.152484]
[1721400157375,0.15438174,65583.0,65578.0,0.015249]
[1721400157600,0.15438174,65583.0,65582.0,0.15248]
[1721400157828,0.15438174,65583.0,65582.0,0.457441]
[1721400158287,0.07717479,65584.0,65583.0,0.457435]
[1721400158542,0.23155653,65584.0,65583.0,0.762392]
[1721400158758,0.23155653,65584.0,65583.0,0.80616771]
[1721400158975,0.23155653,65584.0,65583.0,0.19625371]
[1721400159429,0.23155653,65584.0,65583.0,0.50121071]
[1721400159662,0.00084,65589.0,65588.0,0.152466]
[1721400159915,0.00084,65589.0,65588.0,0.78205617]
[1721400160138,0.00084,65589.0,65588.0,1.08698917]
[1721400160816,0.00084,65589.0,65588.0,1.22718917]
[1721400162165,0.00384,65589.0,65588.0,1.27718917]
[1721400162425,0.00384,65589.0,65588.0,1.58212217]
[1721400162645,0.00584,65589.0,65588.0,1.83650391]
[1721400162861,0.00584,65589.0,65588.0,1.84550391]
[1721400162862,0.00684,65589.0,65588.0,1.84550391]
[1721400163079,0.00084,65589.0,65588.0,1.83650391]
[1721400163328,0.00084,65589.0,65588.0,1.78650391]
[1721400163547,0.00184,65589.0,65588.0,2.20143691]
[1721400163774,0.00184,65589.0,65588.0,1.84650391]
[1721400164205,0.00184,65589.0,65588.0,1.79650391]
[1721400164466,0.00184,65589.0,65588.0,1.84650391]
[1721400164724,0.00284,65589.0,65588.0,1.85550391]
[1721400164972,0.00284,65589.0,65588.0,1.89550391]
[1721400165208,0.00084,65589.0,65588.0,1.88650391]
[1721400165455,0.00184,65589.0,65588.0,1.79550391]
[1721400165691,0.00284,65589.0,65588.0,1.84950391]
[1721400166337,0.00084,65589.0,65588.0,3.03643691]
[1721400166567,0.07996879,65617.0,65616.0,0.152401]
[1721400166787,0.00838,65618.0,65617.0,0.457198]
[1721400167018,0.00838,65618.0,65617.0,1.066796]
[1721400169089,0.00838,65618.0,65617.0,1.458095]
[1721400169316,0.00838,65618.0,65617.0,1.68220091]
[1721400169540,0.00838,65618.0,65617.0,1.85440091]
[1721400169541,0.00938,65618.0,65617.0,1.85440091]
[1721400169757,0.00938,65618.0,65617.0,2.25598448]
[1721400170202,0.00938,65618.0,65617.0,2.3033501]
[1721400170701,0.00838,65637.0,65636.0,1.066485]
[1721400170926,0.00838,65637.0,65636.0,0.81044044]
[1721400171869,0.00838,65637.0,65636.0,1.11515044]
[1721400172090,0.00838,65637.0,65636.0,1.39803218]
[1721400172310,0.00938,65637.0,65636.0,0.90294044]
[1721400172538,0.00938,65637.0,65636.0,0.59823044]
[1721400172772,0.00938,65637.0,65636.0,1.36203218]
[1721400173000,0.00838,65637.0,65636.0,0.88894044]
[1721400173218,0.00838,65637.0,65636.0,1.24365044]
[1721400173684,0.00838,65637.0,65636.0,1.25765044]
[1721400173942,0.00838,65637.0,65636.0,1.39803218]
[1721400174393,0.00838,65637.0,65636.0,2.13203218]
[1721400174642,0.00938,65637.0,65636.0,1.94514218]
[1721400175099,0.00938,65637.0,65636.0,1.64043218]
[1721400175368,0.00838,65637.0,65636.0,2.64114218]
[1721400175596,0.00838,65637.0,65636.0,2.3837978]
[1721400175820,0.00938,65637.0,65636.0,2.33643218]
[1721400176034,0.00938,65637.0,65636.0,2.35043218]
[1721400177169,0.00938,65637.0,65636.0,2.65514218]
[1721400178808,0.00938,65637.0,65636.0,2.35043218]
[1721400180388,0.00938,65637.0,65636.0,1.32987237]
[1721400180626,0.00938,65637.0,65636.0,0.12403106]
[1721400180850,0.03238,65637.0,65636.0,0.028]
[1721400181312,0.78902074,65637.0,65636.0,0.028]
[1721400181750,0.09498,65637.0,65636.0,0.028]
[1721400182019,0.00938,65637.0,65636.0,0.180355]
[1721400182261,0.00838,65637.0,65636.0,0.0485083]
[1721400182494,0.00838,65637.0,65636.0,0.5235733]
[1721400182735,0.00938,65637.0,65636.0,0.8282833]
[1721400182973,0.00938,65637.0,65636.0,0.8192833]
[1721400183208,0.00938,65637.0,65636.0,0.8132833]
[1721400183664,0.00838,65637.0,65636.0,0.8102833]
[1721400183878,0.00838,65637.0,65636.0,0.8212833]
[1721400184115,0.00938,65637.0,65636.0,0.8212833]
[1721400184345,0.00938,65637.0,65636.0,0.0595083]
[1721400184565,0.00938,65637.0,65636.0,0.011]
[1721400184803,0.00938,65637.0,65636.0,0.015]
[1721400185510,0.00938,65637.0,65636.0,0.152355]
[1721400185511,0.00838,65637.0,65636.0,0.152355]
[1721400185759,0.00938,65637.0,65636.0,1.077485]
[1721400185997,0.00938,65637.0,65636.0,1.23186674]
[1721400186269,0.01038,65637.0,65636.0,0.479065]
[1721400186765,0.00938,65637.0,65636.0,0.772775]
[1721400186996,0.00938,65637.0,65636.0,1.28186674]
[1721400187736,0.00938,65637.0,65636.0,0.772775]
[1721400187973,0.002794,65649.0,65648.0,0.889937]
[1721400188211,0.46304871,65658.0,65654.0,0.152313]
[1721400188475,0.07717479,65657.0,65654.0,0.91594874]
[1721400188717,0.07717479,65657.0,65654.0,0.45694]
[1721400188957,0.15657479,65672.0,65654.0,0.45694]
[1721400188958,0.002794,65670.0,65654.0,1.066194]
[1721400189194,0.15657479,65672.0,65654.0,1.066194]
[1721400189668,0.07717479,65672.0,65654.0,1.22057574]
[1721400189944,0.07717479,65672.0,65654.0,1.27057574]
[1721400190184,0.00937,65655.0,65654.0,1.28257574]
[1721400190697,0.01037,65655.0,65654.0,1.29557574]
[1721400190949,0.01037,65655.0,65654.0,0.786567]
[1721400191210,0.39867878,65655.0,65654.0,0.786567]
[1721400191660,0.39867878,65655.0,65654.0,0.48194]
[1721400191874,0.39867878,65655.0,65654.0,0.786567]
[1721400192097,0.39867878,65655.0,65654.0,1.29557574]
[1721400192321,0.39667878,65655.0,65654.0,1.27057574]
[1721400192537,0.39667878,65655.0,65654.0,0.772567]
[1721400192761,0.39667878,65655.0,65654.0,0.786567]
[1721400192989,0.39667878,65655.0,65654.0,1.33157574]
[1721400193238,0.39667878,65655.0,65654.0,1.38157574]
[1721400193455,0.39667878,65655.0,65654.0,1.39557574]
[1721400193688,0.39667878,65655.0,65654.0,1.38457574]
[1721400193922,0.39667878,65655.0,65654.0,1.98458375]
[1721400194148,0.39667878,65655.0,65654.0,1.69395675]
[1721400194369,0.39516878,65655.0,65654.0,1.69395675]
[1721400195058,0.39516878,65655.0,65654.0,1.99858375]
[1721400195504,0.39516878,65655.0,65654.0,1.98458375]
[1721400195719,0.39516878,65655.0,65654.0,1.97058375]
[1721400195955,0.39516878,65655.0,65654.0,1.99858375]
[1721400196178,0.39516878,65655.0,65654.0,3.03921075]
[1721400196397,0.39516878,65655.0,65654.0,2.27521075]
[1721400196629,0.39516878,65655.0,65654.0,1.93458375]
[1721400196869,0.39516878,65655.0,65654.0,1.99929723]
[1721400197131,0.39516878,65655.0,65654.0,1.94929723]
[1721400197345,0.39516878,65655.0,65654.0,1.92129723]
[1721400197565,0.39516878,65655.0,65654.0,1.93529723]
[1721400197814,0.39516878,65655.0,65654.0,1.98529723]
[1721400198512,0.39516878,65655.0,65654.0,1.63067023]
[1721400198740,0.39516878,65655.0,65654.0,1.98529723]
[1721400198996,0.39516878,65655.0,65654.0,1.99929723]
[1721400199218,0.39516878,65655.0,65654.0,1.98529723]
[1721400199455,0.39516878,65655.0,65654.0,1.99729723]
[1721400199682,0.39516878,65655.0,65654.0,2.82129723]
[1721400199926,0.39516878,65655.0,65654.0,2.82145928]
[1721400200174,0.002794,65694.0,65678.0,0.761287]
[1721400200422,0.155014,65694.0,65680.0,0.456759]
[1721400200635,0.3047,65695.0,65680.0,0.456759]
[1721400200636,0.46584271,65693.0,65683.0,0.152246]
[1721400200893,0.002794,65692.0,65683.0,0.152246]
[1721400201576,0.00836,65684.0,65683.0,0.76427467]
[1721400201798,0.00836,65684.0,65683.0,0.76123]
[1721400202010,0.00836,65684.0,65683.0,1.065722]
[1721400202239,0.00836,65684.0,65683.0,1.22010374]
[1721400202481,0.00836,65684.0,65683.0,1.32010374]
[1721400202700,0.00836,65684.0,65680.0,0.005]
[1721400202916,0.00836,65684.0,65683.0,0.456738]
[1721400203145,0.08446,65684.0,65683.0,0.003]
[1721400203389,0.14966,65684.0,65683.0,0.0116783]
[1721400203618,0.14966,65684.0,65683.0,0.4754163]
[1721400203619,0.07356,65684.0,65683.0,0.4754163]
[1721400203836,0.07356,65684.0,65683.0,0.49180913]
[1721400204050,0.07356,65684.0,65683.0,0.48480913]
[1721400204268,0.07356,65684.0,65683.0,0.03907113]
[1721400204453,0.07356,65684.0,65683.0,0.49580913]
[1721400204953,0.07356,65684.0,65683.0,0.19131713]
[1721400205190,0.07356,65684.0,65683.0,0.03907113]
[1721400205414,0.09656,65684.0,65683.0,0.0226783]
[1721400205629,0.09656,65684.0,65683.0,0.0296783]
[1721400205857,0.09656,65684.0,65683.0,0.0156783]
[1721400206052,0.09656,65684.0,65683.0,0.0086783]
[1721400206303,0.09656,65684.0,65683.0,0.0166783]
[1721400206522,0.09656,65684.0,65683.0,0.0156783]
[1721400206912,0.09656,65684.0,65683.0,0.0086783]
[1721400207395,0.09656,65684.0,65683.0,0.0096783]
[1721400209480,0.07356,65684.0,65683.0,0.0096783]
[1721400209717,0.07356,65684.0,65683.0,0.05532253]
[1721400210184,0.07456,65684.0,65683.0,0.20756853]
[1721400210400,0.00936,65684.0,65683.0,0.81655253]
[1721400210624,0.00836,65684.0,65683.0,0.81655253]
[1721400211109,0.00936,65684.0,65683.0,0.81655253]
[1721400211588,0.00936,65684.0,65683.0,0.51306053]
[1721400211828,0.00936,65684.0,65683.0,0.05532253]
[1721400212083,0.00936,65684.0,65683.0,0.0086783]
[1721400212323,0.00836,65684.0,65683.0,0.0116783]
[1721400212561,0.08446,65684.0,65683.0,0.0116783]
[1721400212828,0.10746,65684.0,65683.0,0.0116783]
[1721400213773,0.00836,65684.0,65683.0,0.0106783]
[1721400214009,0.00836,65684.0,65683.0,0.0136783]
[1721400214249,0.00836,65684.0,65683.0,0.0106783]
[1721400214500,0.00836,65684.0,65683.0,0.1629243]
[1721400214729,0.00836,65684.0,65683.0,0.1659243]
[1721400214980,0.00836,65684.0,65683.0,0.51715873]
[1721400215463,0.00836,65684.0,65683.0,0.51415873]
[1721400215700,0.00836,65684.0,65683.0,0.51215873]
[1721400215939,0.00836,65684.0,65683.0,0.51415873]
[1721400216175,0.00836,65684.0,65683.0,1.19914273]
[1721400216926,0.00836,65684.0,65683.0,1.19714273]
[1721400217159,0.00836,65684.0,65683.0,1.20014273]
[1721400217619,0.00836,65684.0,65683.0,1.77063775]
[1721400218106,0.00836,65684.0,65683.0,1.76763775]
[1721400219324,0.00836,65684.0,65683.0,1.77063775]
[1721400219571,0.00836,65684.0,65683.0,1.35752447]
[1721400219806,0.00836,65684.0,65683.0,1.13214273]
[1721400220245,0.00836,65684.0,65683.0,1.12714273]
[1721400220517,0.00836,65684.0,65683.0,1.14114273]
[1721400220758,0.00836,65684.0,65683.0,0.83065073]
[1721400221251,0.00836,65684.0,65683.0,0.81665073]
[1721400221490,0.00836,65684.0,65683.0,1.13514273]
[1721400221755,0.00836,65684.0,65683.0,1.30352447]
[1721400222004,0.00836,65684.0,65683.0,1.14914273]
[1721400222483,0.00836,65684.0,65683.0,1.60801647]
[1721400222732,0.00836,65684.0,65683.0,1.30352447]
[1721400223972,0.00836,65684.0,65683.0,1.28952447]
[1721400224187,0.00836,65684.0,65683.0,1.38439198]
[1721400224426,0.00836,65684.0,65683.0,1.30352447]
[1721400224685,0.00836,65684.0,65683.0,1.41242351]
[1721400224930,0.00836,65684.0,65683.0,1.39842351]
[1721400225653,0.00836,65684.0,65683.0,1.25804177]
[1721400225906,0.00836,65684.0,65683.0,1.14914273]
[1721400226890,0.00836,65684.0,65683.0,1.2564706]
[1721400227143,0.00836,65684.0,65683.0,1.25646936]
[1721400227381,0.00836,65684.0,65683.0,1.14914273]
[1721400228103,0.00836,65684.0,65683.0,1.4109176]
[1721400229057,0.00836,65684.0,65683.0,1.30352447]
[1721400233966,0.00836,65684.0,65683.0,0.84465073]
[1721400234944,0.00836,65684.0,65683.0,1.14914273]
[1721400236856,0.00836,65684.0,65683.0,1.60801647]
[1721400237813,0.00836,65684.0,65683.0,1.59401647]
[1721400238036,0.00836,65684.0,65683.0,1.28952447]
[1721400238479,0.00836,65684.0,65683.0,1.30352447]
[1721400238702,0.00836,65684.0,65683.0,1.28952447]
[1721400239143,0.00836,65684.0,65683.0,1.27552447]
[1721400239360,0.00836,65684.0,65683.0,1.28952447]
[1721400239876,0.00836,65684.0,65683.0,1.41590317]
[1721400240586,0.00836,65684.0,65683.0,1.42990317]
[1721400241060,0.00836,65684.0,65683.0,1.27552143]
[1721400241516,0.00836,65684.0,65683.0,0.36204543]
[1721400241792,0.00836,65684.0,65683.0,0.54015873]
[1721400242017,0.011154,65684.0,65683.0,1.14914273]
[1721400242252,0.00836,65684.0,65683.0,1.27553047]
[1721400243641,0.00836,65684.0,65683.0,1.32553047]
[1721400243842,0.00836,65684.0,65683.0,1.27553047]
[1721400245395,0.00836,65684.0,65683.0,1.27552383]
[1721400245827,0.00836,65684.0,65683.0,1.26152383]
[1721400247117,0.00836,65684.0,65683.0,1.31152383]
[1721400247326,0.00836,65684.0,65683.0,1.24752383]
[1721400247768,0.00836,65684.0,65683.0,1.26152383]
[1721400247985,0.00836,65684.0,65683.0,1.24752383]
[1721400248441,0.00836,65684.0,65683.0,1.26152383]
[1721400248659,0.00836,65684.0,65683.0,1.26152267]
[1721400249074,0.00836,65684.0,65683.0,1.32552305]
[1721400249278,0.00836,65684.0,65683.0,1.27552305]
[1721400251717,0.00836,65684.0,65683.0,1.14914273]
[1721400251925,0.00836,65684.0,65683.0,1.27552562]
[1721400253697,0.00836,65684.0,65683.0,0.97103362]
[1721400254347,0.00836,65684.0,65683.0,0.97104147]
[1721400255014,0.00836,65684.0,65683.0,1.78440511]
[1721400255475,0.00836,65684.0,65683.0,1.73440511]
[1721400255909,0.00836,65684.0,65683.0,1.27553137]
[1721400257385,0.00836,65684.0,65683.0,0.97103937]
[1721400257812,0.00836,65684.0,65683.0,0.84465073]
[1721400258024,0.00836,65684.0,65683.0,0.97103441]
[1721400260086,0.00836,65684.0,65683.0,1.27552641]
[1721400261018,0.00836,65684.0,65683.0,1.27552589]
[1721400264057,0.00836,65684.0,65683.0,1.27553167]
[1721400264491,0.00836,65684.0,65683.0,1.27553078]
[1721400267121,0.00836,65684.0,65683.0,1.14914273]
[1721400267392,0.00836,65684.0,65683.0,1.27552604]
[1721400270204,0.00836,65684.0,65683.0,1.27553114]
[1721400270409,0.00836,65684.0,65683.0,0.97103914]
[1721400271349,0.30804174,65684.0,65683.0,0.16306671]
[1721400271562,0.30804174,65684.0,65683.0,0.0366783]
[1721400271563,0.34520114,65684.0,65683.0,0.0366783]
[1721400271787,0.49013135,65684.0,65683.0,0.0366783]
[1721400272003,0.63958135,65684.0,65683.0,0.0366783]
[1721400272227,0.75377741,65684.0,65683.0,0.0366783]
[1721400272437,0.48733735,65684.0,65683.0,0.0366783]
[1721400272644,0.48733735,65684.0,65683.0,0.0226783]
[1721400272645,0.49013135,65684.0,65683.0,0.0226783]
[1721400273064,0.48733872,65684.0,65683.0,0.0326783]
[1721400273273,0.57862467,65684.0,65683.0,0.0326783]
[1721400273483,0.34520251,65684.0,65683.0,0.0326783]
[1721400273922,0.34799651,65684.0,65683.0,0.0326783]
[1721400274109,0.34520251,65684.0,65683.0,0.0186783]
[1721400274352,0.34520251,65684.0,65683.0,0.0286783]
[1721400274567,0.41361967,65684.0,65683.0,0.0286783]
[1721400275411,0.34520251,65684.0,65683.0,0.0286783]
[1721400275618,0.39080208,65684.0,65683.0,0.0286783]
[1721400276047,0.33104174,65684.0,65683.0,0.0286783]
[1721400276260,0.39078481,65684.0,65683.0,0.0286783]
[1721400276695,0.34518539,65684.0,65683.0,0.0286783]
[1721400276942,0.33104174,65684.0,65683.0,0.0286783]
[1721400277874,0.34521172,65684.0,65683.0,0.0286783]
[1721400278061,0.39081114,65684.0,65683.0,0.0286783]
[1721400278307,0.54305514,65684.0,65683.0,0.0286783]
[1721400278524,0.49745572,65684.0,65683.0,0.0286783]
[1721400278956,0.34521172,65684.0,65683.0,0.0286783]
[1721400279167,0.34519366,65684.0,65683.0,0.0286783]
[1721400279375,0.33104174,65684.0,65683.0,0.0286783]
[1721400281369,0.33104174,65684.0,65683.0,0.06199763]
[1721400282144,0.33104174,65684.0,65683.0,0.51873563]
[1721400282145,0.07166,65684.0,65683.0,0.51873563]
[1721400282380,0.00836,65684.0,65683.0,0.7899083]
[1721400282648,0.00836,65684.0,65683.0,1.0944003]
[1721400282909,0.00836,65684.0,65683.0,0.7899083]
[1721400283410,0.00836,65684.0,65683.0,0.4854163]
[1721400284331,0.00836,65684.0,65683.0,1.0944003]
[1721400285586,0.00836,65684.0,65683.0,0.7899083]
[1721400286343,0.00836,65684.0,65683.0,0.4854163]
[1721400287285,0.00836,65684.0,65683.0,0.7899083]
[1721400288933,0.00836,65684.0,65683.0,0.91630294]
[1721400289436,0.00836,65684.0,65683.0,1.40999494]
[1721400289677,0.00836,65684.0,65683.0,1.35999494]
[1721400289919,0.00836,65684.0,65683.0,1.40999494]
[1721400291164,0.00836,65684.0,65683.0,1.35999494]
[1721400291427,0.00836,65684.0,65683.0,1.2977831]
[1721400291923,0.00836,65684.0,65683.0,2.68665684]